fUSD/lending_fUSD_20250629
["ID","MTS","AMOUNT","RATE_DAILY","PERIOD"]
[368402583,1751161842466,-193.707009,0.00029734,7]
[368402585,1751161842475,-193.707009,0.00029734,7]
[368402587,1751161842485,-175.655001,0.00029734,7]
[368402589,1751161842497,-175.655001,0.00029734,7]
[368402592,1751161842507,-151.0,0.00029734,7]
[368402594,1751161842517,-88.38264503,0.00029753,2]
[368402597,1751161842534,-1704.100003,0.00029753,2]
[368402599,1751161842547,-4175.75099442,0.00029753,2]
[368402602,1751161842563,-361.92035661,0.00029753,2]
[368402604,1751161842575,-1003.37915697,0.00029753,2]
[368402608,1751161842596,-912.78536896,0.00029753,2]
[368402758,1751161843972,-398.66688013,0.00029753,2]
[368402760,1751161843984,-154.558309,0.00029758,7]
[368402762,1751161843994,-154.558309,0.00029758,7]
[368402764,1751161844004,-150.0,0.00029761,2]
[368402766,1751161844014,-180.911817,0.00029763,7]
[368402768,1751161844023,-180.911817,0.00029763,7]
[368402770,1751161844032,-202.755706,0.00029763,7]
[368402772,1751161844042,-202.755706,0.00029763,7]
[368402774,1751161844052,-99.16152502,0.00029763,7]
[368402783,1751161844148,-94.54548398,0.00029763,7]
[368402785,1751161844157,-193.707009,0.00029763,7]
[368402787,1751161844167,-151.0,0.00029763,7]
[368402789,1751161844176,-512.341,0.00029763,2]
[368402791,1751161844185,-300.22317102,0.00029763,2]
[368402795,1751161844223,-940.64329559,0.00029763,2]
[368402817,1751161844431,-3759.13353339,0.00029763,2]
[368402819,1751161844441,-150.0,0.0002977,2]
[368402821,1751161844450,-150.0,0.00029771,2]
[368402823,1751161844460,-2748.44652228,0.00029771,2]
[368402825,1751161844469,-150.0,0.00029772,2]
[368402827,1751161844478,-175.655001,0.00029774,7]
[368402829,1751161844488,-175.655001,0.00029774,7]
[368402831,1751161844497,-5267.66913945,0.00029781,2]
[368402833,1751161844506,-150.0,0.00029784,2]
[368402835,1751161844515,-3169.83576321,0.00029791,2]
[368402837,1751161844525,-151.0,0.00029793,7]
[368402839,1751161844534,-151.0,0.00029793,7]
[368402841,1751161844543,-2953.683203,0.00029798,10]
[368402843,1751161844552,-268.516654,0.00029798,10]
[368402845,1751161844562,-154.558309,0.000298,7]
[368402847,1751161844571,-154.558309,0.000298,7]
[368402849,1751161844580,-3200.0,0.000298,10]
[368402851,1751161844590,-150.0,0.00029801,2]
[368402853,1751161844600,-202.755706,0.00029807,7]
[368402855,1751161844609,-202.755698,0.00029807,7]
[368402857,1751161844618,-193.707009,0.00029807,7]
[368402858,1751161844628,-193.707009,0.00029807,7]
[368402860,1751161844637,-151.0,0.00029807,7]
[368402862,1751161844646,-8644.98540512,0.00029812,2]
[368402864,1751161844657,-440.0,0.00029813,2]
[368402866,1751161844668,-432.0,0.00029813,2]
[368402868,1751161844678,-500.0,0.00029813,2]
[368402870,1751161844687,-175.655001,0.00029826,7]
[368402872,1751161844698,-175.654996,0.00029826,7]
[368402874,1751161844707,-203.73200075,0.00029829,2]
[368402876,1751161844718,-500.0,0.00029829,2]
[368402878,1751161844727,-206.66773501,0.00029834,2]
[368402880,1751161844737,-201.750361,0.0002985,2]
[368402882,1751161844746,-252.71168286,0.0002985,2]
[368402883,1751161844756,-201.55638927,0.0002985,2]
[368402885,1751161844765,-150.0,0.0002985,2]
[368402887,1751161844775,-150.0,0.0002985,2]
[368402889,1751161844784,-154.558309,0.00029853,7]
[368402891,1751161844794,-154.558309,0.00029853,7]
[368402893,1751161844803,-34579.9416205,0.00029853,2]
[368402895,1751161844812,-2748.44652228,0.0002986,2]
[368402897,1751161844821,-150.0,0.0002986,2]
[368402899,1751161844832,-188.632388,0.00029863,2]
[368402901,1751161844841,-151.0,0.00029863,7]
[368402903,1751161844851,-204.738294,0.00029863,7]
[368402905,1751161844861,-151.0,0.00029863,7]
[368402907,1751161844871,-151.0,0.00029863,7]
[368402909,1751161844880,-151.0,0.00029863,7]
[368402911,1751161844890,-151.0,0.00029863,7]
[368402913,1751161844901,-151.0,0.00029863,7]
[368402915,1751161844910,-151.236668,0.00029863,7]
[368402917,1751161844920,-151.0,0.00029863,7]
[368402919,1751161844929,-223.277588,0.00029863,7]
[368402921,1751161844939,-223.277588,0.00029863,7]
[368402923,1751161844948,-223.277588,0.00029863,7]
[368402925,1751161844958,-223.277588,0.00029863,7]
[368402927,1751161844967,-163.019733,0.00029863,7]
[368402929,1751161844977,-112.53738506,0.00029863,7]
[368402932,1751161844996,-38.46261494,0.00029863,7]
[368402934,1751161845005,-151.0,0.00029863,7]
[368402936,1751161845015,-180.911817,0.00029863,7]
[368402938,1751161845024,-180.911817,0.00029863,7]
[368402940,1751161845033,-180.911817,0.00029863,7]
[368402942,1751161845042,-175.99568721,0.00029863,7]
[368403051,1751161846107,-4.91612979,0.00029863,7]
[368403054,1751161846127,-154.558309,0.00029863,7]
[368403055,1751161846140,-154.558309,0.00029863,7]
[368403056,1751161846153,-154.558309,0.00029863,7]
[368403057,1751161846166,-154.558309,0.00029863,7]
[368403058,1751161846179,-154.558309,0.00029863,7]
[368403059,1751161846192,-154.558309,0.00029863,7]
[368403060,1751161846204,-154.558309,0.00029863,7]
[368403062,1751161846217,-154.558302,0.00029863,7]
[368403064,1751161846231,-193.707009,0.00029863,7]
[368403066,1751161846243,-193.707,0.00029863,7]
[368403069,1751161846256,-151.0,0.00029863,7]
[368403071,1751161846269,-330.1140596,0.00029863,5]
[368403931,1751161875699,152.15,0.00013699,2]
[368403933,1751162264509,1501.99169932,0.000267,10]
[368403934,1751162462502,151.0,0.00013699,2]
[368403935,1751162463102,151.0,0.00013699,2]
[368403936,1751162762925,151.0,0.00013699,2]
[368403937,1751162764108,205.01484384,0.00013699,2]
[368403938,1751162813136,-152.15,0.00021918,2]
[368403939,1751162813159,-62.64168914,0.0002401,2]
[368403941,1751163031781,-275.0,0.00022,2]
[368403942,1751163031791,-153.54922058,0.0002401,2]
[368403943,1751163031801,-250.0,0.0002411,2]
[368403944,1751163031811,-250.0,0.00024351,2]
[368403945,1751163031820,-210.0,0.00025339,2]
[368403946,1751163031830,-658.611197,0.00026784,2]
[368403947,1751163031839,-500.0,0.00027507,2]
[368403948,1751163031848,-168.0,0.00027607,2]
[368403949,1751163031857,-600.0,0.00027638,2]
[368403950,1751163031867,-958.0,0.00027638,2]
[368403951,1751163031876,-235.722102,0.00027639,7]
[368403952,1751163031885,-235.722102,0.00027639,7]
[368403953,1751163031894,-195.231076,0.00027639,7]
[368403954,1751163031904,-195.231076,0.00027639,7]
[368403955,1751163031913,-195.231076,0.00027639,7]
[368403956,1751163031923,-195.231076,0.00027639,7]
[368403957,1751163031932,-151.0,0.00027639,7]
[368403958,1751163031941,-151.0,0.00027639,7]
[368403959,1751163031951,-151.0,0.00027639,7]
[368403960,1751163031960,-151.0,0.00027639,7]
[368403961,1751163031969,-151.0,0.00027639,7]
[368403962,1751163031979,-151.0,0.00027639,7]
[368403963,1751163031988,-151.0,0.00027639,7]
[368403964,1751163031998,-151.0,0.00027639,7]
[368403965,1751163032008,-151.0,0.00027639,7]
[368403966,1751163032017,-151.0,0.00027639,7]
[368403967,1751163032028,-235.722102,0.00027694,7]
[368403968,1751163032038,-195.231076,0.00027694,7]
[368403969,1751163032048,-195.231076,0.00027694,7]
[368403970,1751163032060,-151.0,0.00027694,7]
[368403971,1751163032069,-85.28682042,0.00027694,7]
[368403974,1751163032136,-65.71317958,0.00027694,7]
[368403976,1751163032147,-151.0,0.00027749,7]
[368403978,1751163032156,-122.46594488,0.00027749,7]
[368403991,1751163032267,-28.53405512,0.00027749,7]
[368403993,1751163032277,-168.0,0.00027772,2]
[368403995,1751163032286,-168.0,0.00027888,2]
[368403997,1751163032295,-168.0,0.0002794,2]
[368403999,1751163032304,-250.0,0.00027964,2]
[368404001,1751163032313,-1000.0,0.00027996,2]
[368404003,1751163032323,-439.2,0.00028016,2]
[368404006,1751163032332,-165.95,0.00028052,2]
[368404008,1751163032341,-165.95,0.00028076,2]
[368404010,1751163032350,-165.95,0.00028099,2]
[368404012,1751163032359,-165.95,0.00028123,2]
[368404014,1751163032368,-1529.13194129,0.00028136,2]
[368404016,1751163032377,-165.95,0.00028146,2]
[368404018,1751163032386,-165.95,0.00028169,2]
[368404020,1751163032395,-165.95,0.00028193,2]
[368404022,1751163032404,-9886.53366621,0.00028193,2]
[368404024,1751163032413,-18854.41593738,0.00028197,2]
[368404026,1751163032425,-2869.59588886,0.00028197,2]
[368404031,1751163032457,-500.0,0.00028197,2]
[368404034,1751163032480,-1675.98817376,0.00028197,2]
[368404036,1751163032489,-999.99,0.00028203,2]
[368404038,1751163032499,-53.89349534,0.00028203,2]
[368404560,1751163037654,-4137.64287964,0.00028203,2]
[368404562,1751163037670,-583.33621479,0.00028203,2]
[368404565,1751163037681,-291.40866374,0.00028203,2]
[368404567,1751163037693,-297.31269638,0.00028203,2]
[368404569,1751163037704,-298.14775562,0.00028203,2]
[368404746,1751163039798,152.53,0.00013699,2]
[368404776,1751163040075,-152.53,0.00021918,2]
[368404778,1751163040085,-1728.7209231,0.00028203,2]
[368405038,1751163042694,-2609.52737139,0.00028203,2]
[368405039,1751163042703,-150.99,0.00028203,2]
[368405040,1751163042713,-151.0,0.00028252,2]
[368405041,1751163042722,-207.4,0.00028252,2]
[368405042,1751163042732,-300.0,0.00028252,2]
[368405043,1751163042741,-348.7694136,0.00028252,2]
[368405044,1751163042750,-500.0,0.00028252,2]
[368405045,1751163042760,-500.0,0.00028252,2]
[368405046,1751163042769,-500.0,0.00028252,2]
[368405047,1751163042778,-2514.22003068,0.00028252,2]
[368405048,1751163042787,-500.0,0.00028252,2]
[368405049,1751163042798,-1000.0,0.00028252,2]
[368405050,1751163042807,-500.0,0.00028252,2]
[368405051,1751163042816,-1000.0,0.00028252,2]
[368405052,1751163042826,-500.0,0.00028252,2]
[368405053,1751163042835,-1000.0,0.00028252,2]
[368405054,1751163042845,-500.0,0.00028252,2]
[368405055,1751163042855,-1000.0,0.00028252,2]
[368405056,1751163042864,-500.0,0.00028252,2]
[368405057,1751163042874,-1000.0,0.00028252,2]
[368405058,1751163042884,-500.0,0.00028252,2]
[368405059,1751163042893,-1000.0,0.00028252,2]
[368405060,1751163042903,-508.87349783,0.00028252,2]
[368405061,1751163042914,-1000.0,0.00028252,2]
[368405062,1751163042924,-1000.0,0.00028252,2]
[368405063,1751163042934,-1000.0,0.00028252,2]
[368405064,1751163042943,-1000.0,0.00028252,2]
[368405065,1751163042953,-637.33132658,0.00028252,2]
[368405066,1751163042963,-299.28,0.0002829,2]
[368405067,1751163042973,-180.42,0.00028302,7]
[368405068,1751163042983,-666.0,0.00028315,2]
[368405069,1751163042992,-1000.0,0.00028325,2]
[368405070,1751163043001,-207.41,0.00028381,2]
[368405071,1751163043011,-835.62347362,0.0002843,2]
[368405072,1751163043021,-235.722102,0.00028448,7]
[368405074,1751163043030,-195.231076,0.00028448,7]
[368405075,1751163043291,-195.231076,0.00028448,7]
[368405076,1751163043302,-151.0,0.00028448,7]
[368405077,1751163043312,-207.941803,0.00028448,7]
[368405078,1751163043321,-151.0,0.00028448,7]
[368405079,1751163043331,-151.0,0.00028448,7]
[368405080,1751163043340,-235.722102,0.0002846,7]
[368405081,1751163043350,-195.231076,0.0002846,7]
[368405082,1751163043360,-195.231076,0.0002846,7]
[368405083,1751163043370,-151.0,0.0002846,7]
[368405084,1751163043379,-151.0,0.0002846,7]
[368405085,1751163043388,-153.166112,0.0002846,7]
[368405086,1751163043398,-1364.32,0.00028554,2]
[368405087,1751163043407,-151.0,0.000287,7]
[368405088,1751163043416,-235.722102,0.00028733,7]
[368405089,1751163043426,-195.231076,0.00028733,7]
[368405090,1751163043435,-195.231076,0.00028733,7]
[368405091,1751163043444,-151.0,0.00028733,7]
[368405092,1751163043453,-151.0,0.00028746,7]
[368405093,1751163043462,-1573.0,0.000288,2]
[368405094,1751163043472,-215.88192768,0.00028829,2]
[368405095,1751163043482,-16963.7751,0.000289,2]
[368405096,1751163043491,-151.0,0.0002899,7]
[368405097,1751163043500,-235.722102,0.00029,7]
[368405098,1751163043510,-195.231076,0.00029,7]
[368405099,1751163043519,-195.231076,0.00029,7]
[368405100,1751163043529,-151.0,0.00029,7]
[368405102,1751163043538,-405.3,0.00029017,120]
[368405104,1751163043548,-439.2,0.00029067,2]
[368405106,1751163043557,-151.0,0.00029076,7]
[368405108,1751163043566,-152.0,0.00029134,3]
[368405110,1751163043575,-857.0,0.00029176,2]
[368405112,1751163043585,-1163.0,0.00029176,2]
[368405114,1751163043594,-1529.13194129,0.00029176,2]
[368405116,1751163043603,-210.0,0.0002919,8]
[368405118,1751163043613,-1704.81,0.00029237,2]
[368405120,1751163043623,-235.722102,0.00029276,7]
[368405122,1751163043633,-195.231076,0.00029276,7]
[368405124,1751163043642,-195.231076,0.00029276,7]
[368405126,1751163043651,-151.0,0.00029276,7]
[368405128,1751163043661,-235.722102,0.00029302,7]
[368405129,1751163043670,-195.231076,0.00029302,7]
[368405131,1751163043679,-195.231076,0.00029302,7]
[368405133,1751163043689,-151.0,0.00029302,7]
[368405135,1751163043698,-2358.17865028,0.000295,5]
[368405137,1751163043707,-235.722102,0.000295,7]
[368405139,1751163043716,-235.722092,0.000295,7]
[368405141,1751163043726,-195.231076,0.000295,7]
[368405143,1751163043735,-195.231081,0.000295,7]
[368405145,1751163043743,-151.0,0.000295,7]
[368405147,1751163043753,-400.0,0.000295,10]
[368405149,1751163043763,-180.250151,0.00029525,8]
[368405151,1751163043772,-1000.0,0.000296,2]
[368405153,1751163043781,-800.0,0.000296,10]
[368405155,1751163043791,-636.444,0.00029606,23]
[368405157,1751163043801,-215.0738,0.00029621,2]
[368405159,1751163043810,-1200.0,0.000297,10]
[368405161,1751163043819,-500.0,0.00029714,2]
[368405163,1751163043828,-500.0,0.00029714,2]
[368405165,1751163043837,-500.0,0.00029714,2]
[368405167,1751163043846,-500.0,0.00029714,2]
[368405169,1751163043855,-500.0,0.00029714,2]
[368405171,1751163043864,-500.0,0.00029714,2]
[368405173,1751163043874,-500.0,0.00029714,2]
[368405175,1751163043883,-500.0,0.00029714,2]
[368405177,1751163043892,-500.0,0.00029714,2]
[368405179,1751163043902,-500.0,0.00029714,2]
[368405181,1751163043911,-500.0,0.00029714,2]
[368405183,1751163043924,-500.0,0.00029714,2]
[368405185,1751163043933,-500.0,0.00029714,2]
[368405187,1751163043943,-500.0,0.00029714,2]
[368405189,1751163043953,-500.0,0.00029714,2]
[368405191,1751163043962,-500.0,0.00029714,2]
[368405193,1751163043971,-500.0,0.00029714,2]
[368405195,1751163043981,-500.0,0.00029714,2]
[368405197,1751163043990,-500.0,0.00029714,2]
[368405199,1751163043999,-585.3192,0.00029714,2]
[368405201,1751163044008,-3340.0,0.00029737,2]
[368405203,1751163044017,-948.0,0.00029737,2]
[368405205,1751163044027,-639.0,0.00029737,2]
[368405207,1751163044036,-152.0,0.00029747,4]
[368405209,1751163044045,-1952.4999,0.0002976,2]
[368405211,1751163044056,-502.4679,0.00029762,2]
[368405212,1751163044066,-1954.04665545,0.00029763,2]
[368405214,1751163044075,-150.39271733,0.00029763,2]
[368405216,1751163044085,-1000.0,0.00029763,2]
[368405218,1751163044095,-500.0,0.00029763,2]
[368405220,1751163044104,-1500.0,0.000298,7]
[368405222,1751163044113,-1600.0,0.000298,10]
[368405224,1751163044123,-150.0,0.0002985,2]
[368405226,1751163044135,-500.0,0.0002985,2]
[368405228,1751163044145,-150.0,0.0002985,2]
[368405230,1751163044154,-150.0,0.0002985,2]
[368405232,1751163044164,-150.81928164,0.0002985,2]
[368405234,1751163044174,-150.0,0.0002985,2]
[368405236,1751163044183,-150.0,0.0002985,2]
[368405238,1751163044192,-150.78742384,0.0002985,2]
[368405240,1751163044202,-150.0,0.0002985,2]
[368405242,1751163044211,-500.0,0.0002985,2]
[368405244,1751163044220,-150.0,0.0002985,2]
[368405246,1751163044229,-150.0,0.0002985,2]
[368405248,1751163044239,-150.0,0.0002985,2]
[368405250,1751163044249,-500.0,0.0002985,2]
[368405252,1751163044258,-150.0,0.0002985,2]
[368405254,1751163044268,-150.0,0.0002985,2]
[368405256,1751163044277,-150.0,0.0002985,2]
[368405258,1751163044286,-12648.6852744,0.00029853,2]
[368405260,1751163044296,-1954.04665544,0.00029854,2]
[368405262,1751163044306,-2885.5182804,0.0002986,2]
[368405264,1751163044315,-2196.0509651,0.0002986,2]
[368405266,1751163044325,-4504.363739,0.0002986,2]
[368405268,1751163044334,-24017.662685,0.0002986,2]
[368405270,1751163044344,-4925.41301,0.0002986,2]
[368405271,1751163044353,-65169.6837779,0.0002986,2]
[368405273,1751163044362,-14996.156615,0.0002986,2]
[368405275,1751163044371,-665.627709,0.0002986,2]
[368405277,1751163044381,-300.55558573,0.00029861,14]
[368405279,1751163044390,-150.0,0.00029863,5]
[368405281,1751163044400,-150.0,0.00029863,5]
[368405283,1751163044409,-150.0,0.00029863,5]
[368405285,1751163044419,-150.0,0.00029863,5]
[368405287,1751163044428,-150.0,0.00029863,5]
[368405289,1751163044437,-186.13354685,0.00029863,5]
[368405291,1751163044446,-185.40507398,0.00029863,5]
[368405293,1751163044456,-152.229709,0.00029863,7]
[368405295,1751163044465,-200.0,0.00029863,2]
[368405297,1751163044474,-5407.7685,0.00029863,2]
[368405299,1751163044484,-1000.0,0.00029863,9]
[368405301,1751163044495,-1000.0,0.00029863,5]
[368405303,1751163044504,-1000.0,0.00029863,5]
[368405305,1751163044513,-1000.0,0.00029863,5]
[368405307,1751163044522,-1000.0,0.00029863,5]
[368405309,1751163044532,-1000.0,0.00029863,5]
[368405311,1751163044541,-1000.0,0.00029863,5]
[368405313,1751163044552,-1000.0,0.00029863,5]
[368405315,1751163044561,-1000.0,0.00029863,5]
[368405317,1751163044571,-1000.0,0.00029863,5]
[368405319,1751163044581,-688.0,0.00029863,5]
[368405320,1751163044590,-1148.0,0.00029863,5]
[368405322,1751163044600,-1000.0,0.00029863,7]
[368405324,1751163044610,-1000.0,0.00029863,7]
[368405326,1751163044619,-1000.0,0.00029863,7]
[368405328,1751163044629,-1000.0,0.00029863,7]
[368405330,1751163044639,-1000.0,0.00029863,7]
[368405332,1751163044649,-1000.0,0.00029863,7]
[368405334,1751163044658,-1000.0,0.00029863,7]
[368405336,1751163044667,-1000.0,0.00029863,7]
[368405338,1751163044677,-1000.0,0.00029863,7]
[368405340,1751163044687,-1000.0,0.00029863,7]
[368405342,1751163044696,-1000.0,0.00029863,7]
[368405344,1751163044705,-1000.0,0.00029863,7]
[368405345,1751163044714,-1000.0,0.00029863,7]
[368405346,1751163044724,-1000.0,0.00029863,7]
[368405347,1751163044734,-1000.0,0.00029863,7]
[368405348,1751163044744,-1000.0,0.00029863,7]
[368405349,1751163044754,-1000.0,0.00029863,7]
[368405350,1751163044763,-1000.0,0.00029863,7]
[368405351,1751163044773,-1000.0,0.00029863,7]
[368405352,1751163044782,-1000.0,0.00029863,7]
[368405353,1751163044791,-1000.0,0.00029863,7]
[368405354,1751163044800,-1000.0,0.00029863,7]
[368405355,1751163044810,-1000.0,0.00029863,7]
[368405356,1751163044819,-1000.0,0.00029863,7]
[368405357,1751163044828,-1000.0,0.00029863,7]
[368405358,1751163044838,-1000.0,0.00029863,7]
[368405359,1751163044847,-1000.0,0.00029863,7]
[368405360,1751163044857,-1000.0,0.00029863,7]
[368405361,1751163044867,-1000.0,0.00029863,7]
[368405362,1751163044876,-1000.0,0.00029863,7]
[368405364,1751163044885,-1000.0,0.00029863,7]
[368405365,1751163044895,-1000.0,0.00029863,7]
[368405367,1751163044904,-1000.0,0.00029863,7]
[368405368,1751163044914,-1000.0,0.00029863,7]
[368405370,1751163044923,-1000.0,0.00029863,7]
[368405372,1751163044933,-1000.0,0.00029863,7]
[368405374,1751163044943,-1000.0,0.00029863,7]
[368405376,1751163044952,-1000.0,0.00029863,7]
[368405378,1751163044961,-1000.0,0.00029863,7]
[368405380,1751163044971,-1000.0,0.00029863,7]
[368405382,1751163044980,-1000.0,0.00029863,7]
[368405384,1751163044990,-1000.0,0.00029863,7]
[368405386,1751163044999,-300.27,0.00029863,2]
[368405388,1751163045008,-2100.0,0.000299,10]
[368405390,1751163045018,-5059.47410974,0.000299,2]
[368405392,1751163045028,-5407.76851,0.0002991,2]
[368405394,1751163045037,-2529.73705487,0.00029916,2]
[368405396,1751163045047,-171.80440988,0.00029926,15]
[368405399,1751163045060,-5000.0,0.00029926,2]
[368405400,1751163045069,-168.0,0.00029937,2]
[368405402,1751163045079,-1954.04665544,0.00029945,2]
[368405405,1751163045089,-2529.73705487,0.0002999,2]
[368405407,1751163045099,-371.54,0.0003,2]
[368405409,1751163045108,-683.00937678,0.0003,2]
[368405411,1751163045120,-1000.0,0.0003,4]
[368405413,1751163045130,-200.0,0.0003,120]
[368405415,1751163045139,-200.466887,0.0003,2]
[368405417,1751163045149,-1921.8032,0.00030014,10]
[368405419,1751163045158,-15178.4223292,0.00030016,2]
[368405421,1751163045167,-2529.73705487,0.00030018,2]
[368405423,1751163045177,-151.0,0.00030026,7]
[368405425,1751163045186,-151.0,0.00030026,7]
[368405427,1751163045195,-279.425178,0.00030026,7]
[368405429,1751163045204,-179.065966,0.00030026,7]
[368405431,1751163045213,-179.065966,0.00030026,7]
[368405433,1751163045223,-500.0,0.00030026,2]
[368405435,1751163045232,-500.0,0.00030026,2]
[368405437,1751163045242,-500.0,0.00030026,2]
[368405439,1751163045251,-500.0,0.00030026,2]
[368405441,1751163045261,-500.0,0.00030026,2]
[368405443,1751163045270,-500.0,0.00030026,2]
[368405445,1751163045279,-500.0,0.00030026,2]
[368405447,1751163045290,-500.0,0.00030026,2]
[368405449,1751163045299,-500.0,0.00030026,2]
[368405451,1751163045308,-500.0,0.00030026,2]
[368405453,1751163045317,-500.0,0.00030026,2]
[368405455,1751163045328,-500.0,0.00030026,2]
[368405456,1751163045339,-500.0,0.00030026,2]
[368405458,1751163045348,-500.0,0.00030026,2]
[368405460,1751163045359,-500.0,0.00030026,2]
[368405462,1751163045368,-500.0,0.00030026,2]
[368405464,1751163045378,-500.0,0.00030026,2]
[368405466,1751163045388,-500.0,0.00030026,2]
[368405468,1751163045398,-500.0,0.00030026,2]
[368405470,1751163045408,-500.0,0.00030026,2]
[368405473,1751163045418,-500.0,0.00030026,2]
[368405474,1751163045428,-500.0,0.00030026,2]
[368405477,1751163045437,-500.0,0.00030026,2]
[368405479,1751163045447,-500.0,0.00030026,2]
[368405482,1751163045456,-500.0,0.00030026,2]
[368405484,1751163045466,-500.0,0.00030026,2]
[368405486,1751163045475,-500.0,0.00030026,2]
[368405488,1751163045485,-500.0,0.00030026,2]
[368405490,1751163045494,-500.0,0.00030026,2]
[368405492,1751163045503,-500.0,0.00030026,2]
[368405494,1751163045512,-500.0,0.00030026,2]
[368405496,1751163045521,-500.0,0.00030026,2]
[368405498,1751163045530,-500.0,0.00030026,2]
[368405500,1751163045540,-500.0,0.00030026,2]
[368405502,1751163045550,-500.0,0.00030026,2]
[368405504,1751163045559,-500.0,0.00030026,2]
[368405506,1751163045569,-500.0,0.00030026,2]
[368405507,1751163045578,-500.0,0.00030026,2]
[368405510,1751163045588,-500.0,0.00030026,2]
[368405511,1751163045597,-500.0,0.00030026,2]
[368405513,1751163045606,-500.0,0.00030026,2]
[368405515,1751163045616,-500.0,0.00030026,2]
[368405517,1751163045625,-500.0,0.00030026,2]
[368405519,1751163045635,-500.0,0.00030026,2]
[368405522,1751163045645,-500.0,0.00030026,2]
[368405523,1751163045655,-500.0,0.00030026,2]
[368405526,1751163045665,-500.0,0.00030026,2]
[368405527,1751163045674,-500.0,0.00030026,2]
[368405529,1751163045683,-500.0,0.00030026,2]
[368405541,1751163045778,-500.0,0.00030026,2]
[368405543,1751163045787,-522.0,0.00030026,2]
[368405545,1751163045796,-500.0,0.00030026,2]
[368405547,1751163045805,-500.0,0.00030026,2]
[368405549,1751163045814,-500.0,0.00030026,2]
[368405551,1751163045824,-500.0,0.00030026,2]
[368405552,1751163045834,-500.0,0.00030026,2]
[368405554,1751163045844,-547.0,0.00030026,2]
[368405556,1751163045853,-151.0,0.0003003,7]
[368405559,1751163045863,-277.32270044,0.00030036,2]
[368405561,1751163045873,-152.13488366,0.00030036,2]
[368405563,1751163045884,-283.30165559,0.00030036,2]
[368405564,1751163045894,-1954.04665544,0.00030037,2]
[368405566,1751163045903,-263.0,0.0003006,2]
[368405568,1751163045912,-17708.1593841,0.00030095,2]
[368405570,1751163045921,-500.0,0.00030105,2]
[368405572,1751163045930,-500.0,0.00030105,2]
[368405574,1751163045939,-500.0,0.00030105,2]
[368405576,1751163045948,-500.0,0.00030105,2]
[368405578,1751163045957,-500.0,0.00030105,2]
[368405580,1751163045966,-500.0,0.00030105,2]
[368405582,1751163045975,-500.0,0.00030105,2]
[368405584,1751163045985,-500.0,0.00030105,2]
[368405586,1751163045994,-500.0,0.00030105,2]
[368405588,1751163046003,-509.0,0.00030105,2]
[368405590,1751163046013,-500.0,0.00030105,2]
[368405592,1751163046023,-500.0,0.00030105,2]
[368405594,1751163046032,-500.0,0.00030105,2]
[368405596,1751163046041,-500.0,0.00030105,2]
[368405598,1751163046050,-500.0,0.00030105,2]
[368405600,1751163046064,-500.0,0.00030105,2]
[368405602,1751163046073,-500.0,0.00030105,2]
[368405604,1751163046082,-500.0,0.00030105,2]
[368405606,1751163046092,-500.0,0.00030105,2]
[368405608,1751163046101,-500.0,0.00030105,2]
[368405610,1751163046110,-500.0,0.00030105,2]
[368405612,1751163046119,-500.0,0.00030105,2]